bitfinex/quotes_ETHUSD_20250129
["timestamp","ask_amount","ask_price","bid_price","bid_amount"]
[1738156502897,3.2145,3110.9,3110.4,0.07530209]
[1738156503095,6.4291,3110.9,3110.4,0.07530209]
[1738156503298,3.2145,3110.9,3110.4,3.29031209]
[1738156503499,3.2145,3110.9,3110.4,4.0166283]
[1738156504211,3.21432,3111.1,3110.6,3.21479]
[1738156504515,3.21432,3111.1,3110.7,0.07516144]
[1738156505317,3.21436,3111.1,3110.7,0.07516144]
[1738156505538,3.21412,3111.3,3110.8,3.2146]
[1738156505700,0.7587,3111.4,3110.8,3.93265556]
[1738156505909,3.2139,3111.5,3111.0,0.8195]
[1738156506085,0.8147,3111.3,3111.1,0.07497395]
[1738156506288,3.21469,3110.8,3110.3,0.8195]
[1738156506520,3.21469,3110.8,3110.4,0.07530209]
[1738156507518,3.21483,3110.6,3110.4,0.07530209]
[1738156507987,3.25509704,3110.5,3110.4,0.07530209]
[1738156508193,6.43062,3110.2,3109.8,0.805]
[1738156508527,3.21529,3110.2,3109.8,0.805]
[1738156508728,3.25548234,3110.2,3109.8,0.805]
[1738156509086,3.21554,3109.9,3109.5,3.3]
[1738156509291,3.25587571,3109.8,3109.5,2.547]
[1738156509744,3.21568,3109.8,3109.5,2.547]
[1738156509891,3.21551,3110.0,3109.5,2.547]
[1738156510092,3.25580662,3109.9,3109.5,2.547]
[1738156510341,3.21565,3109.8,3109.5,2.547]
[1738156510569,3.21561,3109.9,3109.5,2.547]
[1738156511926,3.21566,3109.8,3109.5,2.547]
[1738156512131,3.21538,3110.1,3109.3,0.753]
[1738156512323,3.21552,3110.0,3109.4,3.21604]
[1738156513116,3.21555,3109.9,3109.4,3.21604]
[1738156513653,3.21538,3110.1,3109.5,3.21587]
[1738156513971,0.8024,3110.3,3109.8,3.21555]
[1738156514118,6.21502,3110.4,3109.8,3.21555]
[1738156514776,3.21513,3110.3,3109.8,3.21555]
[1738156515117,3.21513,3110.3,3109.6,3.2158]
[1738156515118,3.21534,3110.1,3109.6,3.2158]
[1738156515317,3.21534,3110.1,3109.5,4.02037]
[1738156515517,3.21514,3110.3,3109.5,4.02037]
[1738156515518,3.21514,3110.3,3109.7,3.21574]
[1738156515829,3.21524,3110.2,3109.5,10.36623842]
[1738156516017,3.25552418,3110.1,3109.5,10.36623842]
[1738156516221,3.21533,3110.1,3109.5,10.36623842]
[1738156516434,3.21533,3110.1,3109.5,7.23625]
[1738156516940,3.21567,3109.8,3109.5,0.8045]
[1738156517125,3.21567,3109.8,3109.2,0.7621]
[1738156517338,3.21567,3109.8,3109.2,3.9783]
[1738156517952,3.21567,3109.8,3109.3,3.21612]
[1738156518642,7.23217,3110.0,3109.3,6.93285192]
[1738156518825,3.21553,3109.9,3109.3,3.71673192]
[1738156519020,3.21526,3110.2,3109.5,0.7621]
[1738156519357,0.8012,3110.4,3109.7,3.21573]
[1738156519358,7.23135,3110.4,3109.7,3.21573]
[1738156519654,0.65287796,3110.5,3110.0,0.7621]
[1738156519655,3.21499,3110.5,3110.0,0.7621]
[1738156519861,0.04018982,3110.4,3110.0,0.7621]
[1738156520866,3.25525982,3110.4,3110.0,0.7621]
[1738156521068,3.25525982,3110.4,3109.8,0.321573]
[1738156521069,3.21522,3110.2,3110.1,0.07252341]
[1738156521231,4.01642,3110.2,3110.1,0.07252341]
[1738156521565,3.21562,3109.9,3109.5,1.1731]
[1738156521966,3.21576,3109.7,3109.5,0.411]
[1738156522168,0.8014,3109.6,3108.9,4.01943]
[1738156522341,0.8014,3109.6,3108.9,0.8029]
[1738156522342,3.21616,3109.3,3108.9,0.8029]
[1738156522667,3.216,3109.5,3108.9,4.421403]
[1738156522827,0.8014,3109.6,3109.0,3.21637]
[1738156523035,4.01729,3109.6,3109.1,3.2163]
[1738156523236,3.21589,3109.6,3109.1,3.2163]
[1738156523676,3.21589,3109.6,3108.9,4.421403]
[1738156523993,3.21589,3109.6,3109.1,3.21635]
[1738156525282,3.21576,3109.7,3109.2,3.21618]
[1738156525434,4.01707,3109.8,3109.3,3.21614]
[1738156525635,3.21567,3109.8,3109.3,3.21614]
[1738156526171,3.21567,3109.8,3109.4,0.7665]
[1738156527571,3.21574,3109.7,3109.4,0.7665]
[1738156527777,3.21587,3109.6,3109.2,0.7587]
[1738156527984,0.7524,3109.6,3109.0,0.4421403]
[1738156528280,3.21611,3109.4,3109.0,0.4421403]
[1738156528476,3.21611,3109.4,3108.9,1.160653]
[1738156528842,3.21611,3109.4,3108.9,0.7587]
[1738156529043,3.21608,3109.4,3108.7,0.7587]
[1738156529244,3.21608,3109.4,3108.9,3.21656]
[1738156529692,3.21608,3109.4,3109.0,3.21646]
[1738156531653,3.9847,3109.9,3109.3,0.7624]
[1738156532243,3.21565,3109.8,3109.3,3.97853]
[1738156532501,3.21617,3109.3,3108.8,3.21664]
[1738156532652,3.21607,3109.4,3108.8,3.21664]
[1738156532852,3.25627396,3109.4,3108.8,3.2166]
[1738156533054,3.21623,3109.3,3108.9,0.638]
[1738156533347,3.21617,3109.3,3108.8,3.21665]
[1738156534406,3.21647,3109.0,3108.5,3.21698]
[1738156535451,3.21647,3109.0,3108.4,1.2099]
[1738156535452,0.7955,3108.9,3108.4,0.8129]
[1738156535674,3.21684,3108.7,3108.2,5.76426]
[1738156535989,3.2168,3108.7,3108.3,0.11699382]
[1738156536195,3.25701227,3108.7,3108.3,0.11699382]
[1738156536398,3.25701227,3108.7,3108.2,2.547]
[1738156536709,3.21698,3108.5,3108.3,0.11699382]
[1738156536910,6.47427307,3108.5,3108.2,2.547]
[1738156537091,3.21698,3108.5,3108.2,2.547]
[1738156537291,3.21698,3108.5,3108.3,0.11699382]
[1738156537594,3.21719,3108.3,3108.2,2.547]
[1738156537792,0.8048,3108.4,3108.2,2.547]
[1738156537996,7.22778,3108.7,3108.2,2.547]
[1738156538199,3.21697,3108.6,3108.2,2.547]
[1738156538394,3.21704,3108.5,3108.2,2.547]
[1738156539397,3.21719,3108.3,3108.2,2.547]
[1738156539911,4.08350704,3108.3,3108.2,2.547]
[1738156540582,3.21737,3108.2,3107.6,3.21787]
[1738156541113,0.04022117,3108.2,3107.4,3.21812]
[1738156541511,3.21762,3107.9,3107.3,1.1829]
[1738156541855,3.21762,3107.9,3107.4,3.2181]
[1738156542176,3.21762,3107.9,3107.3,4.649229]
[1738156542688,3.21762,3107.9,3107.3,1.431019]
[1738156542896,3.21762,3107.9,3107.4,3.2181]
[1738156543423,0.04022415,3108.0,3107.4,3.21806]
[1738156543586,3.25778415,3108.0,3107.4,3.21806]
[1738156544395,3.21786,3107.7,3107.2,3.21829]
[1738156544719,0.04022531,3107.6,3107.2,3.21829]
[1738156544878,3.25813531,3107.6,3107.1,0.387]
[1738156545430,0.04022531,3107.6,3107.3,3.2182]
[1738156545721,3.21709,3108.4,3107.3,3.2182]
[1738156545722,0.7697,3108.1,3107.4,3.21804]
[1738156545919,0.7697,3108.1,3107.5,3.21796]
[1738156545920,3.98711,3108.1,3107.5,3.21796]
[1738156546074,3.98711,3108.1,3107.6,3.21789]
[1738156546275,0.7697,3108.1,3107.6,3.99809]
[1738156546517,0.7697,3108.1,3107.6,3.99804]
[1738156546921,0.7697,3108.1,3107.7,3.21779]
[1738156547327,0.7697,3108.1,3107.6,3.99804]
[1738156547629,3.9871,3108.1,3107.6,3.21784]
[1738156548126,0.7697,3108.1,3107.7,3.21779]
[1738156548590,0.8184,3108.2,3107.8,3.21769]
[1738156548985,0.8184,3108.2,3107.7,3.21775]
[1738156549485,4.0357,3108.2,3107.7,3.21775]
[1738156549893,3.25762026,3108.1,3107.4,3.98945]
[1738156550127,3.25762026,3108.1,3107.6,3.21788]
[1738156550726,3.21755,3108.0,3107.4,4.424447]
[1738156550901,3.25777258,3108.0,3107.5,0.11890322]
[1738156551103,3.21755,3108.0,3107.5,0.11890322]
[1738156551431,3.21755,3108.0,3107.5,3.33689322]
[1738156551630,3.21755,3108.0,3107.5,0.11890322]
[1738156552409,3.21742,3108.1,3107.6,3.2179]
[1738156552805,3.21742,3108.1,3107.7,0.11880651]
[1738156554450,0.8586223,3108.2,3107.7,0.11880651]
[1738156554651,0.8184,3108.2,3107.7,3.33657651]
[1738156554856,0.63935902,3108.5,3107.8,3.2177]
[1738156555062,0.63935902,3108.5,3108.1,3.21732]
[1738156555464,0.63935902,3108.5,3107.9,0.90003801]
[1738156555465,0.63935902,3108.5,3108.2,0.1185135]
[1738156555661,0.63935902,3108.5,3108.4,3.21708]
[1738156555965,0.63935902,3108.5,3108.4,3.33549684]
[1738156556123,0.63935902,3108.5,3108.4,4.09059684]
[1738156556323,0.63935902,3108.5,3108.4,4.82136652]
[1738156556977,0.63935902,3108.5,3108.4,5.37136652]
[1738156559269,0.80507587,3109.2,3108.9,3.21651]
[1738156559479,3.21608,3109.4,3108.8,4.02351]
[1738156559655,0.04020509,3109.3,3109.0,0.11769106]
[1738156559973,3.21578,3109.7,3109.1,0.11764275]
[1738156560176,3.21578,3109.7,3109.2,3.21623]
[1738156560377,3.21557,3109.9,3109.3,0.11754614]
[1738156560580,3.21533,3110.1,3109.3,3.21609]
[1738156560737,3.21533,3110.1,3109.5,6.43176]
[1738156560934,3.21533,3110.1,3109.6,0.11686289]
[1738156561255,3.21533,3110.1,3109.6,3.33270289]
[1738156561635,3.25572747,3110.0,3109.6,0.11686289]
[1738156562057,3.21557,3109.9,3109.4,0.8069]
[1738156562262,3.21533,3110.1,3109.7,0.1168146]
[1738156562561,4.02893,3110.1,3109.8,0.11676631]
[1738156562763,4.02893,3110.1,3109.2,0.8069]
[1738156562764,0.0401964,3110.0,3109.4,6.43196]
[1738156562988,0.0401964,3110.0,3109.5,3.33251341]
[1738156563398,0.0401964,3110.0,3109.5,0.11659341]
[1738156563399,0.793,3109.8,3109.5,0.11659341]
[1738156563607,3.25602138,3109.7,3109.5,0.11659341]
[1738156563773,0.793,3109.8,3109.1,0.55]
[1738156563972,0.8163,3110.0,3109.5,3.21587]
[1738156564178,0.8163,3110.0,3109.6,0.11651949]
[1738156564471,3.21574,3109.7,3109.6,0.11651949]
[1738156564680,3.2157,3109.8,3109.6,0.11651949]
[1738156564899,0.8163,3110.0,3109.6,3.21581]
[1738156565077,0.8163,3110.0,3109.7,0.1164712]
[1738156565293,4.03173,3110.0,3109.7,0.1164712]
[1738156565605,0.04019712,3109.9,3109.5,0.7845]
[1738156565902,3.25572712,3109.9,3109.8,0.11641779]
[1738156566119,3.25572712,3109.9,3109.2,3.21618]
[1738156566120,3.21569,3109.8,3109.2,3.21618]
[1738156566419,4.03181,3110.0,3109.1,3.21636]
[1738156566712,0.85650065,3110.0,3109.2,3.21621]
[1738156566866,0.7784,3109.7,3109.1,3.21633]
[1738156567067,3.25606288,3109.6,3109.1,3.21633]
[1738156568308,0.7784,3109.7,3109.3,3.21614]
[1738156568804,0.0402013,3109.8,3109.5,3.21592]
[1738156569101,3.21547,3110.0,3109.5,3.21592]
[1738156569102,0.04019782,3109.9,3109.5,3.21592]
[1738156569518,0.04019782,3110.0,3109.6,3.21583]
[1738156569699,0.86149779,3110.1,3109.7,3.21572]
[1738156569903,4.07683779,3110.1,3109.6,3.21584]
[1738156571015,7.29222779,3110.1,3109.6,3.21584]
[1738156571325,3.21568,3109.8,3109.3,3.21609]
[1738156571501,0.8025,3109.6,3109.2,3.21622]
[1738156572413,0.8025,3109.6,3109.1,3.89948]
[1738156572716,0.8427013,3109.6,3109.1,6.43258]
[1738156573019,0.8427013,3109.6,3109.2,3.21619]
[1738156573379,0.8025,3109.6,3109.2,3.21619]
[1738156573578,4.05856129,3109.6,3109.1,3.21629]
[1738156573913,0.84270129,3109.6,3109.2,3.21625]
[1738156574915,3.21605,3109.4,3108.9,3.21651]
[1738156575078,0.04020449,3109.3,3108.9,3.21651]
[1738156575281,0.8111,3109.1,3108.6,4.4122]
[1738156575516,3.25668636,3109.0,3108.5,3.21697]
[1738156575725,3.21648,3109.0,3108.4,3.21706]
[1738156576315,3.21648,3109.0,3108.4,3.217]
[1738156576520,0.04020904,3108.9,3108.4,3.217]
[1738156576691,0.04020904,3109.0,3108.4,3.217]
[1738156576898,3.25672904,3109.0,3108.5,3.21696]
[1738156577313,4.06723904,3108.9,3108.3,3.21716]
[1738156577492,0.85060904,3108.9,3108.3,3.21716]
[1738156577694,0.85060904,3108.9,3108.2,2.548]
[1738156577695,3.21684,3108.7,3108.2,2.548]
[1738156577899,0.0402138,3108.6,3108.2,2.548]
[1738156578098,0.0402138,3108.6,3108.2,6.702944]
[1738156578381,4.01109,3108.4,3107.9,3.22503]
[1738156578589,4.01109,3108.4,3107.7,3.21778]
[1738156578590,0.04021731,3108.3,3107.7,3.61673]
[1738156578917,3.21747,3108.1,3107.7,0.399]
[1738156579116,0.04022005,3108.1,3107.7,0.399]
[1738156579294,0.04022005,3108.1,3107.7,3.61675]
[1738156579497,3.2173,3108.2,3107.7,4.34479884]
[1738156579729,0.04022002,3108.3,3107.7,4.34479884]
[1738156579730,0.04022002,3108.3,3107.7,1.12704884]
[1738156579928,0.04022002,3108.3,3107.8,3.21769]
[1738156580222,3.2174,3108.1,3107.7,1.12704884]
[1738156580527,3.21736,3108.2,3107.7,3.61673]
[1738156580682,0.04022002,3108.1,3107.7,3.61673]
[1738156581077,0.04022002,3108.1,3107.8,0.11768151]
[1738156581290,4.01113,3108.4,3107.8,0.11768151]
[1738156581291,0.04022002,3108.3,3107.8,3.33536151]
[1738156581493,0.04022002,3108.3,3107.8,3.21768]
[1738156581724,3.25747002,3108.3,3107.9,0.11835593]
[1738156582222,0.04022002,3108.3,3107.9,0.11835593]
[1738156582521,3.21741,3108.1,3107.6,3.21789]
[1738156582823,0.04022004,3108.0,3107.7,0.11845262]
[1738156583616,0.04022004,3108.0,3107.4,3.21806]
[1738156583617,4.03656,3107.9,3107.4,3.21806]
[1738156583795,0.04022404,3107.8,3107.4,3.21806]
[1738156583993,0.04022404,3107.8,3107.4,3.984074]
[1738156584588,3.25794403,3107.8,3107.4,0.766014]
[1738156584790,0.04022403,3107.8,3107.3,3.22571]
[1738156585102,0.8189,3107.9,3107.4,3.21806]
[1738156585299,3.21751,3108.0,3107.5,3.21794]
[1738156585486,3.25773402,3108.0,3107.3,3.22562]
[1738156585834,3.25773402,3108.0,3107.4,3.21805]
[1738156586025,3.25773402,3108.0,3107.4,6.4361]
[1738156586226,3.25773402,3108.0,3107.4,3.21805]
[1738156586428,3.25773402,3108.0,3107.4,6.43609]
[1738156586632,3.088877,3107.9,3107.4,3.21804]
[1738156586822,3.21792,3107.6,3107.0,5.76648]
[1738156587003,0.04022644,3107.5,3107.0,5.76648]
[1738156587202,3.96792,3107.8,3107.2,3.21832]
[1738156587604,0.04022622,3107.7,3107.2,3.21832]
[1738156587934,0.04022622,3107.7,3107.2,4.117544]
[1738156588106,0.04022622,3107.7,3107.2,0.899224]
[1738156588821,3.25806622,3107.7,3107.2,0.899224]
[1738156589018,3.21794,3107.6,3107.1,3.21842]
[1738156589220,0.0402282,3107.5,3107.1,3.21842]
[1738156589422,3.25825852,3107.5,3107.0,2.548]
[1738156589608,3.21829,3107.3,3107.0,2.548]
[1738156589813,4.04973,3107.1,3107.0,2.548]
[1738156590210,3.21867,3106.9,3106.4,0.8137]
[1738156590413,0.04023721,3106.8,3106.5,0.764513]
[1738156590613,0.04023721,3106.8,3106.3,0.393]
[1738156590939,0.04023721,3106.8,3106.3,3.2192]
[1738156591239,3.25900721,3106.8,3106.3,3.2192]
[1738156591436,3.25900721,3106.8,3105.7,3.21986]
[1738156591437,0.803,3106.7,3105.7,3.21986]
[1738156591609,0.803,3106.5,3105.4,1.1447]
[1738156591817,0.0402459,3106.4,3105.6,3.21993]
[1738156592019,3.21987,3105.8,3105.2,3.22039]
[1738156592236,0.803,3105.6,3105.0,6.44111]
[1738156592543,0.04025432,3105.5,3104.9,0.7517]
[1738156592714,0.803,3106.1,3105.5,3.22009]
[1738156592918,4.02248,3106.1,3105.5,3.22009]
[1738156593222,0.04025043,3106.0,3105.4,3.22012]
[1738156593421,3.25987043,3106.0,3105.4,3.67581293]
[1738156593799,0.04025043,3106.0,3105.4,3.67581293]
[1738156594000,0.803,3106.1,3105.5,0.84895903]
[1738156594205,0.803,3106.1,3105.8,3.21976]
[1738156594647,0.04024666,3106.0,3105.5,0.8328]
[1738156594857,3.25982666,3106.0,3105.4,3.22013]
[1738156595067,0.04024666,3106.0,3105.4,3.22013]
[1738156595210,3.21969,3105.9,3105.4,3.22013]
[1738156595410,0.04025016,3105.8,3105.4,3.22013]
[1738156595914,4.0225,3106.1,3105.5,0.11462934]
[1738156595915,3.21968,3105.9,3105.5,0.11462934]
[1738156596143,0.803,3106.1,3105.1,2.549]
[1738156596144,0.04025151,3105.8,3105.1,2.549]
[1738156596364,3.21998,3105.6,3105.2,0.11481571]
[1738156596661,4.00325,3105.5,3105.2,0.11481571]
[1738156596821,0.04025532,3105.4,3105.2,0.11481571]
[1738156597158,3.2203,3105.3,3105.2,0.11481571]
[1738156598527,3.2203,3105.3,3104.6,3.22096]
[1738156598847,0.04026011,3105.2,3104.7,0.11526855]
[1738156599045,4.00319,3105.5,3104.8,3.22075]
[1738156599341,0.04026007,3105.4,3104.9,0.11526931]
[1738156599644,3.22033,3105.3,3104.9,0.11526931]
[1738156599945,0.04026005,3105.2,3104.6,3.22096]
[1738156600249,0.04026005,3105.2,3104.7,0.11536619]
[1738156600540,6.44152,3104.9,3104.7,0.11536619]
[1738156600719,0.04026427,3104.8,3104.2,3.61135]
[1738156600920,0.04026427,3104.8,3104.3,0.11556]
[1738156601127,0.04026427,3104.8,3104.3,3.22129]
[1738156601331,0.04026427,3104.8,3104.2,3.22135]
[1738156601536,3.26111427,3104.8,3104.3,0.11708513]
[1738156601742,3.26111427,3104.8,3103.9,2.0]
[1738156601743,0.7715,3104.7,3103.4,3.53443844]
[1738156601906,0.7715,3104.4,3103.1,0.8066]
[1738156602105,0.04027859,3104.3,3103.4,3.22219]
[1738156602335,3.22146,3104.2,3103.6,3.22199]
[1738156602652,3.26173342,3104.2,3103.7,0.10987786]
[1738156603057,3.22146,3104.2,3103.5,0.322219]
[1738156603216,3.22158,3104.1,3103.8,0.10982938]
[1738156603429,0.7715,3104.4,3103.6,3.22204]
[1738156603657,0.7715,3104.4,3103.9,3.22169]
[1738156603970,6.22114,3104.5,3104.0,0.10988672]
[1738156604175,6.26141051,3104.5,3104.0,0.10988672]
[1738156604372,6.22114,3104.5,3103.9,3.22171]
[1738156604779,3.22114,3104.5,3104.0,0.10988672]
[1738156605069,3.26152049,3104.4,3104.0,0.10988672]
[1738156605273,0.04027049,3104.4,3104.0,0.10988672]
[1738156605497,3.22114,3104.5,3103.8,3.22176]
[1738156605766,3.26141054,3104.5,3103.9,3.33166518]
[1738156605965,3.22123,3104.4,3103.9,3.33166518]
[1738156606374,3.26150059,3104.4,3103.9,3.33166518]
[1738156606535,4.00147,3104.7,3103.9,3.33166518]
[1738156606739,4.00147,3104.7,3104.1,3.22147]
[1738156607058,4.00147,3104.7,3104.2,0.10967666]
[1738156607261,3.22102,3104.6,3104.2,0.10967666]
[1738156607649,0.7805,3104.7,3104.3,3.22133]
[1738156607856,3.22056,3105.1,3104.5,3.22104]
[1738156608041,3.2609402,3105.0,3104.4,3.3382946]
[1738156608240,0.0402602,3105.0,3104.6,0.10941085]
[1738156608574,0.0402602,3105.0,3104.5,4.00976846]
[1738156608575,0.0402602,3105.0,3104.7,0.10936241]
[1738156608742,3.22056,3105.1,3104.5,4.00976846]
[1738156608945,0.04026021,3105.0,3104.6,0.10941085]
[1738156609258,3.26090021,3105.0,3104.6,0.10941085]
[1738156609455,3.99661,3105.2,3104.6,0.10941085]
[1738156609781,3.99661,3105.2,3104.6,3.33041085]
[1738156609782,3.22053,3105.1,3104.6,3.33041085]
[1738156609951,0.7762,3105.2,3104.6,0.84417878]
[1738156610160,0.7762,3105.2,3104.7,3.2209]
[1738156610342,4.03692972,3105.2,3104.8,0.10931397]
[1738156610676,3.22052,3105.1,3104.6,3.22096]
[1738156610890,3.22052,3105.1,3104.9,0.10926553]
[1738156611091,3.26077916,3105.1,3104.6,3.22096]
[1738156611296,3.22038,3105.3,3105.0,0.10921709]
[1738156611458,3.22038,3105.3,3104.8,3.22081]
[1738156611658,3.26065813,3105.2,3105.1,0.10916866]
[1738156611906,3.26065813,3105.2,3104.7,3.22091]
[1738156612405,3.26065813,3105.2,3104.8,0.10931397]
[1738156612695,0.04025813,3105.2,3104.8,0.10931397]
[1738156612896,3.26046813,3105.4,3104.8,3.66308637]
[1738156613101,3.22038,3105.3,3104.8,0.44233637]
[1738156613305,3.22021,3105.4,3104.8,0.44233637]
[1738156613488,3.22021,3105.4,3104.9,3.22071]
[1738156613685,0.8331,3105.5,3105.0,3.2206]
[1738156613885,4.05321,3105.5,3105.0,3.32946752]
[1738156614085,4.09346631,3105.5,3105.0,3.32946752]
[1738156614384,3.22022,3105.4,3105.0,0.10886752]
[1738156614613,0.04025631,3105.3,3105.0,0.10886752]
[1738156614787,3.22022,3105.4,3104.9,3.22067]
[1738156615105,0.8331,3105.5,3105.0,3.22059]
[1738156615278,4.05321,3105.5,3105.0,3.32945752]
[1738156615668,3.41879,3106.8,3105.2,3.22037]
[1738156615669,3.2199,3105.7,3105.2,3.22037]
[1738156615868,4.04974,3105.9,3105.3,3.22024]
[1738156616172,3.21978,3105.8,3105.3,3.32896223]
[1738156616506,3.2199,3105.7,3105.3,0.10872223]
[1738156617001,3.2199,3105.7,3105.4,0.10844255]
[1738156617499,0.87025109,3105.9,3105.2,3.22037]
[1738156617701,3.21982,3105.8,3105.5,0.10833762]
[1738156618187,3.21982,3105.8,3105.6,0.1082892]
[1738156618365,3.21988,3105.7,3105.2,3.542427]
[1738156618566,3.26013062,3105.7,3105.3,0.10843446]
[1738156618802,3.26013062,3105.7,3105.2,3.542427]
[1738156618997,0.04025062,3105.7,3105.3,0.10843446]
[1738156619298,3.22026,3105.4,3104.9,1.48195224]
[1738156619605,3.22041,3105.2,3104.9,1.48195224]
[1738156619805,3.26064446,3105.3,3104.8,0.397]
[1738156620571,3.22042,3105.2,3104.8,0.397]
[1738156620780,0.04025446,3105.3,3104.8,0.397]
[1738156620969,3.26062446,3105.3,3104.8,3.6178]
[1738156621903,3.22015,3105.5,3104.9,3.22061]
[1738156622075,3.22015,3105.5,3104.9,3.90607733]
[1738156622279,0.83,3105.9,3104.9,3.90607733]
[1738156622280,4.04969,3105.9,3105.2,0.832]
[1738156622483,3.21978,3105.8,3105.3,3.22027]
[1738156623012,3.26003206,3105.8,3105.3,3.22027]
[1738156624377,3.26003206,3105.8,3105.2,0.832]
[1738156624378,3.21988,3105.7,3105.2,0.832]
[1738156624611,3.21988,3105.7,3105.2,4.779609]
[1738156625012,0.04025206,3105.6,3104.9,3.22067]
[1738156625329,3.22035,3105.3,3104.8,1.2397]
[1738156625527,3.26060621,3105.3,3104.8,4.4605]
[1738156625751,0.04025621,3105.3,3104.8,4.4605]
[1738156625922,3.22003,3105.6,3104.9,0.768134]
[1738156626093,3.97564,3105.8,3104.9,0.768134]
[1738156626094,3.21988,3105.7,3105.2,3.22034]
[1738156626430,3.21968,3105.9,3105.3,4.09027991]
[1738156626623,4.61438457,3106.0,3105.5,3.22007]
[1738156626933,4.61438457,3106.0,3105.3,4.09027991]
[1738156627087,4.61438457,3106.0,3105.6,0.10801685]
[1738156627289,3.21968,3105.9,3105.4,3.22018]
[1738156627515,0.7558,3106.0,3105.7,0.10796844]
[1738156627702,4.62471804,3106.3,3105.7,3.21981]
[1738156627898,4.62471804,3106.3,3105.8,3.32768003]
[1738156628428,3.97476,3106.6,3105.9,0.762]
[1738156628646,3.97476,3106.6,3106.0,3.21948]
[1738156628943,3.21914,3106.5,3106.0,3.32718504]
[1738156629092,0.04024208,3106.4,3106.0,3.32718504]
[1738156629294,0.7558,3106.6,3106.1,3.21944]
[1738156629496,4.01509205,3106.6,3106.0,4.05807954]
[1738156629721,3.21907,3106.5,3106.2,0.10760824]
[1738156629917,0.04024208,3106.4,3106.1,0.10765664]
[1738156630120,3.25940208,3106.4,3106.3,0.10755985]
[1738156630318,3.25940208,3106.4,3106.2,0.10760824]
[1738156630518,3.25940208,3106.4,3106.0,0.7308945]
[1738156630519,3.25940208,3106.4,3106.3,0.10755985]
[1738156630726,0.04024208,3106.4,3106.3,0.10755985]
[1738156630920,0.04024201,3106.5,3106.0,3.9504645]
[1738156631237,3.21906,3106.5,3106.1,0.47124645]
[1738156631442,3.25942207,3106.4,3106.1,0.57890309]
[1738156631602,3.25942207,3106.4,3106.1,0.10765664]
[1738156631804,0.7558,3106.3,3106.1,0.10765664]
[1738156632145,3.21946,3106.2,3105.6,3.21992]
[1738156632435,0.04024583,3106.1,3105.5,0.404]
[1738156632595,0.04024583,3106.2,3105.1,0.7631]
[1738156632795,0.04024583,3106.2,3104.9,0.408]
[1738156632796,3.2203,3105.3,3104.9,0.408]
[1738156633101,0.7828,3105.5,3104.5,2.0]
[1738156633102,3.22061,3105.0,3104.5,5.98422]
[1738156633324,3.22074,3104.9,3104.6,0.920541]
[1738156633536,3.22074,3104.9,3104.4,3.22119]
[1738156634242,3.22052,3105.1,3104.4,3.22114]
[1738156634462,3.22073,3104.9,3104.4,3.22114]
[1738156635136,3.22052,3105.1,3104.4,3.22114]
[1738156635443,3.22052,3105.1,3104.5,3.22106]
[1738156635647,3.22052,3105.1,3104.6,0.322106]
[1738156635823,3.22062,3105.0,3104.6,0.322106]
[1738156636607,0.04026138,3104.9,3104.6,0.322106]
[1738156636833,3.22062,3105.0,3104.6,0.322106]
[1738156637247,3.22062,3105.0,3104.2,0.7631]
[1738156637248,0.7828,3104.8,3104.2,0.7631]
[1738156637436,3.2211,3104.6,3104.0,5.77258]
[1738156637635,3.22129,3104.4,3104.0,2.551]
[1738156637836,3.2211,3104.6,3104.0,5.77258]
[1738156638007,3.2211,3104.6,3104.1,0.899432]
[1738156638212,3.22115,3104.5,3104.1,0.899432]
[1738156639312,3.26141963,3104.5,3104.1,0.899432]
[1738156639714,3.2614194,3104.5,3104.1,0.899432]
[1738156640048,3.22115,3104.5,3104.1,0.899432]
[1738156640251,3.22115,3104.5,3104.0,3.22158]
[1738156640854,0.0402695,3104.6,3104.0,6.44312]
[1738156641055,0.82306974,3104.8,3104.1,0.10152895]
[1738156641355,0.04026603,3104.8,3104.4,3.22122]
[1738156641675,3.22083,3104.8,3104.5,0.1013659]
[1738156641823,3.26118598,3104.7,3104.5,0.1013659]
[1738156642021,3.26118598,3104.7,3104.2,3.22135]
[1738156642332,0.04026598,3104.7,3104.3,0.10146281]
[1738156642529,3.26108603,3104.8,3104.3,0.10146281]
[1738156642744,3.26108603,3104.8,3104.2,3.943384]
[1738156643056,3.26108603,3104.8,3104.3,0.10146281]
[1738156643423,3.26108603,3104.8,3104.2,3.943384]
[1738156643756,3.26108603,3104.8,3104.3,0.49580121]
[1738156644139,3.22073,3104.9,3104.3,3.71708121]
[1738156644342,3.22073,3104.9,3104.4,3.22121]
[1738156644759,3.22073,3104.9,3104.5,0.1013659]
[1738156645438,0.04026381,3104.8,3104.5,0.1013659]
[1738156647959,3.22073,3104.9,3104.5,0.1013659]
[1738156648131,3.99986,3105.1,3104.5,0.47305733]
[1738156648330,0.7793,3105.1,3104.6,0.7563]
[1738156648543,0.7793,3105.1,3104.7,3.22089]
[1738156648851,0.7793,3105.1,3104.7,0.1019251]
[1738156649233,3.99981,3105.1,3104.7,0.1019251]
[1738156650387,3.22081,3104.8,3104.7,0.1019251]
[1738156650538,3.22081,3104.8,3104.0,3.22155]
[1738156650539,4.05271,3104.8,3104.0,3.22155]
[1738156650738,3.22115,3104.5,3104.0,3.22155]
[1738156650975,3.261416,3104.5,3104.1,0.10215428]
[1738156651144,0.040266,3104.5,3104.1,0.10215428]
[1738156651352,0.040266,3104.6,3104.1,3.32361428]
[1738156652207,3.261296,3104.6,3104.1,3.32361428]
[1738156652377,0.040266,3104.6,3104.1,0.10215428]
[1738156652675,3.22121,3104.5,3103.9,3.22171]
[1738156652872,0.04026963,3104.4,3104.2,0.10222378]
[1738156653082,0.04026963,3104.4,3103.9,3.866809]
[1738156653380,6.44243,3104.5,3103.9,3.866809]
[1738156653553,3.22097,3104.7,3104.0,3.3239007]
[1738156653757,3.22097,3104.7,3104.1,3.22152]
[1738156653957,3.22097,3104.7,3104.2,0.10222378]